Cogmind - Beta 11.1 @@@ ROGUE MODE // 2022.10.15 @ 14:54:47 Player: Benkyo Result: Destroyed by EX-DEC with AWS/EX-DEC Performance ------------- Evolutions (1) 500 Regions Visited (5) 1000 Robots Destroyed (86) 430 Value Destroyed (1984) 1984 Prototype IDs (33) 660 Alien Tech Used (0) 0 Bonus (1495) 1495 TOTAL SCORE: 6069 Bonus ------- Scavenger 1000 High Alert Combat Kills 85 Follower Combat Kills 110 Aligned with FarCom 300 Cogmind --------- Core Integrity 0/400 Matter 253/300 Energy 310/310 System Corruption 0% Temperature Cool (26) Movement Walking (170) Ox1 Location -9/Exiles Parts ------- > --- POWER (1) -------- Reinforced Fission Core > --- PROPULSION (2) --- Potential Leg Potential Leg > --- UTILITY (4) ------ Experimental Heat Sink Huge Storage Unit Improved Salvage Targeting Computer Weapon Cycler > --- WEAPON (2) ------- Advanced Beam Cannon Rocket Launcher > --- INVENTORY (25) --- Ion Engine Light Treads Light Treads Light Treads Light Treads Advanced Myomer Leg Armored Wheel Armored Wheel Armored Wheel Armored Wheel Improved Heat Sink Cooling System Cooling System Gravity Neutralizer Structural Scanner Experimental Sensor Array Experimental Targeting Computer AS-neutralizer No. 17b Flak Gun Mini Grenade Launcher Mini Grenade Launcher Peak State ------------ > --- POWER ------------ Reinforced Fission Core > --- PROPULSION ------- Potential Leg Potential Leg > --- UTILITY ---------- Experimental Heat Sink Huge Storage Unit Improved Salvage Targeting Computer Weapon Cycler > --- WEAPON ----------- Flak Gun Rocket Launcher > --- INVENTORY -------- Advanced Myomer Leg Armored Wheel Armored Wheel Armored Wheel Armored Wheel Improved Heat Sink Cooling System Cooling System Gravity Neutralizer Structural Scanner Experimental Sensor Array Experimental Targeting Computer AS-neutralizer No. 17b Advanced Beam Cannon Mini Grenade Launcher Mini Grenade Launcher [Rating: 53] Favorites ----------- Power Ion Engine Engine Ion Engine Power Core Reinforced Fission Core Propulsion Armored Wheel Treads Light Treads Leg Potential Leg Wheel Armored Wheel Utility Seismic Detector Device Seismic Detector Storage Huge Storage Unit Processor Improved Salvage Targeting Computer Protection Medium Armor Plating Weapon Improved Light Cannon Energy Gun Medium Laser Energy Cannon Advanced Beam Cannon Ballistic Gun Assault Rifle Ballistic Cannon Improved Light Cannon Launcher Rocket Launcher Special Weapon Mining Laser Build | -11 -10 -10 -9 -9 -9 ------- Run | Scr Mat Min Mat Min Exi Slots Evolved 2 | . . . 2 . . Power . | . . . . . . Propulsion . | . . . . . . Utility 2 | . . . 2 . . Weapon . | . . . . . . Parts Attached 73 | 7 10 . 30 3 23 Power 6 | 1 2 . 1 . 2 Engine 5 | 1 2 . 1 . 1 Core 1 | . . . . . 1 Reactor . | . . . . . . Propulsion 20 | 2 3 . 10 . 5 Treads 9 | 2 1 . 4 . 2 Leg 3 | . . . . . 3 Wheel 8 | . 2 . 6 . . Hover . | . . . . . . Flight . | . . . . . . Utility 23 | 2 2 . 9 2 8 Device 10 | 1 . . 3 2 4 Storage 3 | 1 2 . . . . Processor 1 | . . . . . 1 Hackware . | . . . . . . Protection 9 | . . . 6 . 3 Artifact . | . . . . . . Weapon 24 | 2 3 . 10 1 8 Energy Gun 1 | 1 . . . . . Energy Cannon 1 | . . . . . 1 Ballistic Gun 9 | 1 1 . 1 . 6 Ballistic Cannon 8 | . 2 . 6 . . Launcher 1 | . . . . . 1 Special Weapon 4 | . . . 3 1 . Impact Weapon . | . . . . . . Slashing Weapon . | . . . . . . Piercing Weapon . | . . . . . . Special Melee Weapon . | . . . . . . Unidentified Prototypes 4 | . . . . . 4 Parts Lost 20 | . . . 8 . 12 Power 2 | . . . . . 2 Propulsion 4 | . . . 2 . 2 Utility 6 | . . . 3 . 3 Weapon 8 | . . . 3 . 5 Highest Loss Streak 7 | . . . 2 . 7 To Critical Strikes 4 | . . . . . 4 Average Slot Usage (%) 99 | . 100 100 99 100 98 Engine 11 | . 14 14 11 11 8 Treads 10 | . 26 . 9 . 1 Leg 1 | . . . . . 9 Wheel 11 | . 1 28 12 22 10 Device 17 | . 14 14 22 22 12 Storage 12 | . 14 14 11 11 11 Processor 1 | . . . . . 10 Protection 6 | . . . 10 11 9 Ballistic Gun 6 | . 8 . . 11 18 Ballistic Cannon 16 | . 19 28 21 11 . Naked Turns . | . . . . . . Heaviest Build 116 | 13 94 94 105 100 116 Greatest Support 60 | 40 40 24 40 24 60 Greatest Overweight (x) 8 | 1 7 3 8 4 4 Average Overweight (x) 2 | . . 3 3 4 2 Largest Inventory Capacity 25 | 8 25 25 25 25 25 Average Capacity 21 | 7 13 25 25 25 25 Most Carried 25 | 8 21 24 25 25 25 Average Carried 20 | 5 13 22 24 23 22 Final Capacity 25 | 8 25 25 25 25 25 Final Carried 25 | 8 21 24 23 25 21 Class Distribution -------------------- 96% | Mutant 3% | Scavenger-Mutant Dominant Class ---------------- Mutant | -10/Materials Mutant | -10/Mines Mutant | -9/Materials Mutant | -9/Mines Mutant | -9/Exiles Resources | -11 -10 -10 -9 -9 -9 ----------- Run | Scr Mat Min Mat Min Exi Matter Collected 2889 | 291 583 108 1017 . 890 Remotely . | . . . . . . Salvage Created 2299 | 117 802 40 993 . 347 Parts 163 | 11 56 6 70 . 20 Haulers Intercepted 6 | . 2 . 4 . . Recyclers Shooed . | . . . . . . Parts Field Recycled . | . . . . . . Retrieved Matter . | . . . . . . Parts Self-Destructed . | . . . . . . Prevented . | . . . . . . Kills | -11 -10 -10 -9 -9 -9 ------- Run | Scr Mat Min Mat Min Exi Combat Hostiles Destroyed 63 | . 18 6 36 . 3 Guns 9 | . 6 . . . 3 Cannons 54 | . 12 6 36 . . Classes Destroyed 13 | 2 6 . 2 . 3 Builder 2 | . 1 . 1 . . Tunneler 2 | 2 . . . . . Hauler 6 | . 2 . 4 . . Recycler 3 | 1 2 . . . . Operator 2 | . 2 . . . . Turret 1 | . . . . . 1 Watcher 8 | . 3 . 5 . . Swarmer 20 | . 3 6 11 . . Grunt 32 | . 15 . 17 . . Duelist 1 | . . . 1 . . Sentry 7 | . . . 7 . . Zionite 2 | . . . . . 2 Assembled 2 | . . . . . 2 Best Kill Streak 6 | 2 4 3 6 . 2 Combat Bots Only 6 | . 3 3 6 . 2 Max Kills in Single Turn 2 | 1 1 1 2 . 1 Gunslinging . | . . . . . . Exploded . | . . . . . . Melee . | . . . . . . Uniques/NPCs Destroyed 1 | . . . . . 1 8R-AWN (-9/Exiles) Combat | -11 -10 -10 -9 -9 -9 -------- Run | Scr Mat Min Mat Min Exi Damage Taken 3751 | . 298 225 1369 . 1859 Core 463 | . 41 22 146 . 254 Absorbed by Shields . | . . . . . . Redirected to Shielding 41 | . . . . . 41 Regen/Repaired (Parts) 488 | . 198 . 290 . . Core Remaining (%) 87 | 100 . 74 . . . Volleys Fired 320 | 7 80 14 124 1 94 Largest 2 | 2 2 2 2 1 2 Hottest 100 | 70 78 78 100 100 68 Shots Fired 583 | 14 160 28 235 1 145 Gun 203 | 14 68 . 7 . 114 Cannon 361 | . 92 28 221 . 20 Launcher 11 | . . . . . 11 Special 8 | . . . 7 1 . Kinetic 533 | 7 156 28 228 . 114 Thermal 39 | 7 4 . 7 1 20 Explosive 11 | . . . . . 11 Electromagnetic . | . . . . . . Robot Hit Streak 20 | 5 10 3 16 . 20 Robot Miss Streak 7 | 1 7 3 5 . 3 Penetration Max . | . . . . . . Secondary Targets 2 | . 1 . . . 1 Max Gunslinging Chain 1 | . 1 . . . 1 Shots Hit Robots 345 | 9 81 10 130 . 115 Core Hits 137 | 4 36 6 51 . 40 Critical Kills 1 | . . . . . 1 Critical Parts Destroyed 1 | . 1 . . . . Critical Strikes 12 | . 4 . 7 . 1 Meltdown 1 | . . . . . 1 Destroy 1 | . 1 . . . . Blast 10 | . 3 . 7 . . Melee Attacks . | . . . . . . Impact . | . . . . . . Slashing . | . . . . . . Piercing . | . . . . . . Sneak Attacks . | . . . . . . Combat Hostiles . | . . . . . . Follow-up Attacks . | . . . . . . Damage Inflicted 6762 | 113 1418 221 2775 . 2235 Guns 2057 | 113 392 . 16 . 1536 Cannons 4294 | . 1026 221 2759 . 288 Explosions 411 | . . . . . 411 Melee . | . . . . . . Ramming . | . . . . . . Kinetic 5950 | 50 1368 221 2775 . 1536 Thermal 401 | 63 50 . . . 288 Explosive 411 | . . . . . 411 Electromagnetic . | . . . . . . Impact . | . . . . . . Slashing . | . . . . . . Piercing . | . . . . . . Highest Corruption 1 | . 1 1 . . . Average Corruption 1 | . 1 1 . . . Corruption Purged . | . . . . . . Corruption Blocked . | . . . . . . Effects 17 | . 10 7 . . . Message Errors 5 | . 2 3 . . . Matter Fused 3 | . 2 1 . . . Heat Flow Errors 2 | . 2 . . . . Energy Discharges 5 | . 4 1 . . . Data Loss (minor) 1 | . . 1 . . . Alerts 1 | . . 1 . . . Overload Shots . | . . . . . . Overflow Damage 91 | . . 2 78 . 11 Projectiles 80 | . . 2 78 . . Explosions 11 | . . . . . 11 Melee . | . . . . . . Knockbacks 40 | . 7 4 29 . . Impact . | . . . . . . Kinetic 40 | . 7 4 29 . . Secondary . | . . . . . . Self-Inflicted Damage 18 | . . . . . 18 Shots 1 | . . . . . 1 Rammed . | . . . . . . Targets Rammed . | . . . . . . Kicked . | . . . . . . Crushed . | . . . . . . Highest Temperature 244 | 36 144 126 93 42 244 Average Temperature 42 | 15 49 59 32 22 35 Received Heat Transfer 501 | . 144 9 348 . . Siege Activations . | . . . . . . Robots Corrupted . | . . . . . . Combat Hostiles . | . . . . . . Parts Fried . | . . . . . . Impact Corruptions . | . . . . . . Robots Melted 1 | . . . . . 1 Combat Hostiles . | . . . . . . Parts Melted 3 | . . . 2 . 1 Heat Transferred 851 | 185 148 . . . 518 Parts Sabotaged . | . . . . . . Parts Stolen . | . . . . . . Parts Stripped . | . . . . . . Power Chain Reactions . | . . . . . . Missiles Intercepted . | . . . . . . Alert | -11 -10 -10 -9 -9 -9 ------- Run | Scr Mat Min Mat Min Exi Peak Influence 750 | 15 392 239 750 292 . Initial 292 | . 9 77 37 292 . Average 204 | 6 199 116 226 250 . Maximum Alert Level 3 | . 1 1 3 1 . Low Security (%) 50 | 100 55 86 42 20 . Level 1 43 | . 44 13 44 79 . Level 2 5 | . . . 11 . . Level 3 . | . . . 1 . . Level 4 . | . . . . . . Level 5 . | . . . . . . High Security . | . . . . . . Max Security . | . . . . . . Squads Dispatched 14 | . 6 . 7 1 . Investigation 9 | . 4 . 4 1 . Extermination . | . . . . . . Reinforcement 4 | . 2 . 2 . . Assault 1 | . . . 1 . . Garrison . | . . . . . . Intercept . | . . . . . . Searches Triggered . | . . . . . . Construction Impeded . | . . . . . . Haulers Reinforced . | . . . . . . Active Scanning Responses . | . . . . . . Cargo Convoy Interrupts . | . . . . . . Stealth | -11 -10 -10 -9 -9 -9 --------- Run | Scr Mat Min Mat Min Exi Distress Signals 2 | . 1 . 1 . . Communications Jammed . | . . . . . . Distress Signals . | . . . . . . Times Spotted 106 | . 22 8 56 . 20 Peak Tracking Total 9 | . 4 3 7 . 9 Tactical Retreats 11 | . 3 . 5 . 3 Traps | -11 -10 -10 -9 -9 -9 ------- Run | Scr Mat Min Mat Min Exi Traps Triggered 5 | . 3 . 2 . . Indirectly . | . . . . . . Trap Hack Attempts . | . . . . . . Triggered . | . . . . . . Disarmed . | . . . . . . Reprogrammed . | . . . . . . Reused . | . . . . . . Traps Extracted . | . . . . . . Installed . | . . . . . . Triggered . | . . . . . . Exploded 3 | . . . . . 3 Machines | -11 -10 -10 -9 -9 -9 ---------- Run | Scr Mat Min Mat Min Exi Machines Disabled 10 | . 2 1 3 . 4 Max in Single Turn 2 | . 2 . 1 . 1 Machines Sabotaged . | . . . . . . Garrisons Compromised . | . . . . . . Overloaded Fab Kills . | . . . . . . Hacking | -11 -10 -10 -9 -9 -9 --------- Run | Scr Mat Min Mat Min Exi Machines Accessed 20 | . 8 . 9 1 2 Terminals 10 | . 5 . 5 . . Fabricators . | . . . . . . Repair Stations 2 | . 1 . 1 . . Recycling Units 4 | . 2 . 2 . . Scanalyzers 1 | . . . 1 . . Garrison Access . | . . . . . . Total Hacks 53 | . 21 . 29 1 2 Successful 32 | . 11 . 18 1 2 Failed 21 | . 10 . 11 . . Catastrophic 2 | . 1 . 1 . . Database Lockouts . | . . . . . . Manual 22 | . 12 . 9 . 1 Terminals 28 | . 14 . 14 . . Fabricators . | . . . . . . Repair Stations 11 | . 3 . 8 . . Recycling Units 8 | . 4 . 4 . . Scanalyzers 3 | . . . 3 . . Garrison Access . | . . . . . . Terminal Hacks 9 | . 3 . 3 1 2 Record 1 | . . . . . 1 Robot Analysis 1 | . 1 . . . . Prototype ID Bank 3 | . 1 . 2 . . Open Door 1 | . . . . 1 . Locate Traps 2 | . 1 . 1 . . EX-Prototype ID Bank 1 | . . . . . 1 Fabricator Hacks . | . . . . . . Repair Station Hacks 8 | . 2 . 6 . . Scan Component 4 | . 1 . 3 . . Repair 4 | . 1 . 3 . . Recycling Unit Hacks 4 | . 2 . 2 . . Retrieve Components 4 | . 2 . 2 . . Scanalyzer 2 | . . . 2 . . Insert Component 1 | . . . 1 . . Analyze 1 | . . . 1 . . Garrison Access Hacks . | . . . . . . Unauthorized Hacks 9 | . 4 . 5 . . Terminals 5 | . 2 . 3 . . Botnet 4 | . 2 . 2 . . Operators 1 | . . . 1 . . Fabricators . | . . . . . . Repair Stations . | . . . . . . Recycling Units 4 | . 2 . 2 . . Tunnel 4 | . 2 . 2 . . Scanalyzers . | . . . . . . Garrison Access . | . . . . . . Data Cores Recovered . | . . . . . . Used . | . . . . . . Hacking Detections 13 | . 6 . 7 . . Full Trace Events 1 | . 1 . . . . Feedback Events . | . . . . . . Feedback Blocked . | . . . . . . Robot Schematics Acquired . | . . . . . . Robots Built . | . . . . . . Authchips . | . . . . . . Time . | . . . . . . Total Robot Build Rating . | . . . . . . Part Schematics Acquired 1 | . . . 1 . . Parts Built . | . . . . . . Authchips . | . . . . . . Time . | . . . . . . Total Part Build Rating . | . . . . . . Parts Repaired 4 | . 1 . 3 . . Time 122 | . 26 . 96 . . Parts Recycled . | . . . . . . Recycled Matter . | . . . . . . Retrieved Matter . | . . . . . . Retrieved Components 25 | . 19 . 6 . . Parts Scanalyzed 1 | . . . 1 . . Part Schematics Acquired 1 | . . . 1 . . Parts Damaged . | . . . . . . Bothacking | -11 -10 -10 -9 -9 -9 ------------ Run | Scr Mat Min Mat Min Exi Used RIF Installer . | . . . . . . Robots Hacked . | . . . . . . Non-combat . | . . . . . . Combat . | . . . . . . Robot Hacks Applied . | . . . . . . Relay Couplers Released . | . . . . . . Fabnet Peak Effective % . | . . . . . . Robots Rewired . | . . . . . . Allies Hacked . | . . . . . . Hacks Repelled . | . . . . . . Allies | -11 -10 -10 -9 -9 -9 -------- Run | Scr Mat Min Mat Min Exi Total Allies 1 | . . 1 . . . Largest Group 1 | . . 1 1 . . Highest-Rated Group 31 | . . 31 31 . . Highest-Rated Ally 31 | . . 31 31 . . Total Orders . | . . . . . . Ally Attacks 20 | . . 10 10 . . Total Damage 314 | . . 166 148 . . Kills 4 | . . 2 2 . . Allies Corrupted . | . . . . . . Allies Melted . | . . . . . . Intel | -11 -10 -10 -9 -9 -9 ------- Run | Scr Mat Min Mat Min Exi Robot Analysis Total 1 | . 1 . . . . Derelict Logs Recovered 1 | . . 1 . . . Drone Launches . | . . . . . . Drone Recoveries . | . . . . . . Exploration | -11 -10 -10 -9 -9 -9 ------------- Run | Scr Mat Min Mat Min Exi Turns Passed 6538 | 112 1655 570 2508 503 1190 Spaces Moved 3053 | 57 794 366 940 328 568 Core 19 | 19 . . . . . Treads 989 | 38 732 . 219 . . Legs 202 | . . . . . 202 Wheels 1843 | . 62 366 721 328 366 Hover . | . . . . . . Flight . | . . . . . . Fastest Speed 50 | 50 135 135 135 150 125 Average Speed 164 | 125 158 135 194 150 156 Slowest Speed 320 | 160 195 135 320 150 170 Overloaded Moves 12 | . . . . . 12 Propulsion Burnouts . | . . . . . . Robots Hopped . | . . . . . . Cave-ins Triggered . | . . . . . . Exploration Rate (%) 63 | 5 99 94 67 47 70 Regions Visited 5 Branch Regions 3 Pre-discovered Areas 5 | . 2 . 2 . 1 Known Exits Taken . | . . . . . . Unknown Exits Taken 5 | 1 1 1 1 1 . Scrap Searched 2 | . . 2 . . . Spaces Dug 6 | . 1 . 5 . . Terrain Destroyed 23 | . 5 2 14 . 2 Melee . | . . . . . . Projectile 21 | . 5 2 14 . . AOE 2 | . . . . . 2 Terrain Rammed . | . . . . . . Walls Destroyed . | . . . . . . Machines Disabled . | . . . . . . Actions | -11 -10 -10 -9 -9 -9 --------- Run | Scr Mat Min Mat Min Exi Total 4004 | 81 1041 414 1369 336 763 Wait 467 | 2 122 32 257 1 53 Move 3048 | 56 793 365 939 327 568 Hop . | . . . . . . Pick Up 68 | 9 23 3 14 3 16 Fast Attach 14 | 6 3 . 4 . 1 Attach 23 | 1 . . 11 . 11 Detach 1 | . 1 . . . . Swap 36 | . 7 . 15 3 11 Drop 27 | . 12 . 5 1 9 Fire 320 | 7 80 14 124 1 94 Melee . | . . . . . . Ram . | . . . . . . Kick . | . . . . . . Crush . | . . . . . . Escape Stasis . | . . . . . . Rewire . | . . . . . . Trap . | . . . . . . Miscellaneous . | . . . . . . Route ------- -11/Scrapyard -10/Materials (discovered 5 exits: *Mat x3 / [*Min x2]) -10/Mines (discovered 2 exits: *Mat x2) -9/Materials (discovered 5 exits: [*Mat x2] / *Min x2 / [*Sto]) -9/Mines (discovered 2 exits: *Exi / [*Zio]) -9/Exiles History --------- Turn | Location | Event 11 | -11/Scrapyard | Discovered new exit (range 15) 113 | -11/Scrapyard | Entered Materials 310 | -10/Materials | Build established: Mutant 372 | -10/Materials | Discovered new exit (range 5) 402 | -10/Materials | Discovered new exit (range 16) 811 | -10/Materials | Discovered new exit (range 9) 1029 | -10/Materials | Discovered new exit (range 11) 1449 | -10/Materials | Discovered new exit (range 9) 1547 | -10/Materials | Repaired Huge Storage Unit 1768 | -10/Materials | Entered Mines 1844 | -10/Mines | Found a damaged Exp. Sensor Array with a note attached 1847 | -10/Mines | Found Prototype Device 1929 | -10/Mines | Escorted by a lone wolf Derelict 2077 | -10/Mines | Discovered new exit (range 9) 2167 | -10/Mines | Found a hidden stash of uninstalled traps 2197 | -10/Mines | Learned Materials stockpile data 2228 | -10/Mines | Received a Rocket Launcher from a helpful Derelict 2304 | -10/Mines | Discovered new exit (range 6) 2338 | -10/Mines | Entered Materials 2338 | -9/Materials | Accompanied by 1 ally 2338 | -9/Materials | Evolved 2 slots: Utility x2 2435 | -9/Materials | Repaired Imp. Light Cannon 2761 | -9/Materials | Repaired Med. Armor Plating 3224 | -9/Materials | Discovered new exit (range 4) 3483 | -9/Materials | Identified Exp. Sensor Array 3613 | -9/Materials | Discovered new exit (range 8) 3664 | -9/Materials | Discovered new exit (range 6) 3943 | -9/Materials | Discovered new exit (range 12) 4024 | -9/Materials | Discovered new exit (range 11) 4232 | -9/Materials | Repaired Med. Armor Plating 4738 | -9/Materials | First assault squad dispatched 4846 | -9/Materials | Entered Mines 5017 | -9/Mines | Deemed a non-threat by the Exiles lab entrance 5017 | -9/Mines | Discovered new exit (range 5) 5056 | -9/Mines | A Derelict revealed a hidden shortcut to a safe place 5137 | -9/Mines | Assembled infested the area 5143 | -9/Mines | Met a Derelict shopkeep closing up shop 5349 | -9/Mines | Entered Exiles 5394 | -9/Exiles | Met 8R-AWN 5420 | -9/Exiles | Met EX-HEX 5463 | -9/Exiles | Met EX-BIN 5481 | -9/Exiles | Met EX-DEC 5493 | -9/Exiles | Learned location of Zion (-7) 5774 | -9/Exiles | Aligned with FarCom system 5776 | -9/Exiles | Given EX-Vault access code 5810 | -9/Exiles | Opened EX-Vault 5819 | -9/Exiles | Found Potential Leg 5823 | -9/Exiles | Found Potential Leg 5852 | -9/Exiles | Warned to stay clear of 0b10 Research branches 6031 | -9/Exiles | Attacked by the Exiles 6169 | -9/Exiles | Core integrity fell below 50% 6192 | -9/Exiles | Lost 4 parts (1n3w) 6249 | -9/Exiles | Core integrity fell below 20% 6265 | -9/Exiles | Destroyed 8R-AWN 6277 | -9/Exiles | Found Prototype Device 6285 | -9/Exiles | Found Prototype Processor 6291 | -9/Exiles | Lost 7 parts (2p1n2u2w) 6414 | -9/Exiles | Identified AS-neutralizer No. 17b 6539 | -9/Exiles | Destroyed by EX-DEC with AWS/EX-DEC Last Messages --------------- 06412_ Identified Exp. Heat Sink. 06413_ Identified Gravity Neutralizer. 06414_ Identified AS-neutralizer No. 17b. 06416_ Identified Adv. Beam Cannon. 06431_ A-02 Transporter destroyed. 06436_ Acquired Lgt. Treads. 06437_ Acquired 51 matter. 06441_ A-02 Transporter destroyed. 06442_ Acquired 60 matter. 06444_ Acquired Lgt. Treads. 06453_ A-02 Transporter suffers critical hit (Meltdown). 06453_ Ion Engine melted. 06457_ Acquired Lgt. Treads. 06458_ Acquired 49 matter. 06463_ Acquired Lgt. Treads. 06466_ Acquired Ion Engine. 06499_ ZX-C33 destroyed. 06508_ EX-BIN: "I just want to science!" 06523_ LL-F6I(z) destroyed. 06536_ Acquired 21 matter. Map ----- +----------------------------------------------------+ | #?#"# "" """ " #####"" | | #?#### " " | | # #???### | | ?##?????### | | ??????????## | | ???????????## | | ????????????# | | ????????????## """""" | | ????????????# ######""" | | ????????????# ""##????#####""" | | ???????????##"" """##?????????##""" | | ???????????#""" """##???????????#"""" | | ???????????#"" ""#????????????#"" | | ???????????#"" ########???###"""" | | ???????????#"" ## ! ####""" | | ???????????#"" !! """" | | ???????????##" | | ????????????#"" | | ????????????## | | ?????????????#" " "" | | ?????????????#"""" ""## ##""" " " | | ?????????????#"" ""#### #??###""" " | | ?????????????#" """"##??# #???????""" | | ?????????????#""" """#??## ####??????? | | ?????????????## ""##??# "!#??????? | | ??????????????#"" @ """##???#" !#??????? | | ??????????????##""" = ##????#" |"#??????? | | ???????????????##"""" ##?????#!!""!"#??????? | | ????????????????### #??????########??????? | | ??????????????????##### ##????????????????????? | | ??????????????????????## c #?????????????????????? | | ???????????????????????# #?????????????????????? | | ???????????????????????# #?????????????????????? | | ???????????????????????# #?????????????????????? | | ???????????????????????# #?????????????????????? | | ???????????????????????# #?????????????????????? | | ???????????????????????# #?????????????????????? | | ???????????????????????# #?????????????????????? | | ???????????????????????# #?????????????????????? | | ???????????????????????# #?????????????????????? | | ???????????????????????# #?????????????????????? | | ???????????????????????" "?????????????????????? | | ??????????????????????? ?????????????????????? | | ?????????????????????? ?????????????????????? | | ?????????????????????? ! ?????????????????????? | | ????????????????????? =%* ?????????????????????? | | ????????????????????? ! ?????????????????????? | | ?????????????????????""" ?????????????????????? | | ??????????????????????####""?????????????????????? | | ?????????????????????????? ?????????????????????? | +----------------------------------------------------+ Best States ------------- Heat Dissipation 54 Energy Generation 19 Energy Capacity 310 Matter Stores 300 Matter Capacity 300 Sight Range 16 Robot Scan Range 20 Terrain Scan Density 10 Armor Coverage 225 Weapon Shielding 33 Weapon Cycling 15 Evasion (%) 50 Recoil Reduction 2 Salvage Targeting 2 Item Schematics ----------------- Exp. Sensor Array | -9/Materials | Scanalyzed Robot Schematics ------------------ None Fabricated ------------ Nothing Alien Tech Used ----------------- None Achievements -------------- None Challenges ------------ Scavenger Game ------ Seed TransportLightMeganuke Manual? 0 Play Time 00:58:04 Cumulative 400.2 hours Start 2022.10.15 @ 13:59:32 End 2022.10.15 @ 14:54:47 Sessions 1 Manual Loads 0 Difficulty Rogue Special Mode None Game No. 71 Rogue 64 Adventurer 1 Explorer 6 Win Type - Total 28 Types 7/3/10/1/1/1/3/1/1 Lore% 91 Gallery% 92 Achievement% 80 Wizard Run 0 Options --------- ASCII 0 Keyboard 0 Movement Mouse Keybinds 0 Fullscreen 1 Font 18/SmallcapsGlow Map View 76x50 Tactical HUD 1 Map Filters NONE Filters NONE Steam 1 RUN: 0230cb79-5d8f-477c-b866-1fa9649fd066